bitfinex/quotes_BTCUSD_20241229
["timestamp","ask_amount","ask_price","bid_price","bid_amount"]
[1735473694810,3.511812,95243.0,95241.0,0.02082211]
[1735473695019,3.511812,95245.0,95241.0,0.02082211]
[1735473695673,3.511812,95245.0,95241.0,0.02053444]
[1735473696310,3.511812,95247.0,95241.0,0.02053444]
[1735473696512,0.001,95245.0,95241.0,0.02053444]
[1735473696668,3.511812,95244.0,95241.0,0.02053444]
[1735473697266,1.907,95247.0,95241.0,0.02053444]
[1735473697474,1.927223,95247.0,95241.0,0.02053444]
[1735473697700,2.005424,95246.0,95241.0,0.02053444]
[1735473697930,2.032038,95247.0,95241.0,0.02053444]
[1735473698309,2.58544,95247.0,95241.0,0.02053444]
[1735473698804,2.61701,95246.0,95241.0,0.02053444]
[1735473699035,2.317448,95247.0,95241.0,0.02053444]
[1735473699207,2.304896,95247.0,95241.0,0.02053444]
[1735473699426,2.122062,95247.0,95241.0,0.02053444]
[1735473699656,0.28371243,95243.0,95241.0,0.02053444]
[1735473700073,2.367142,95242.0,95241.0,0.02053444]
[1735473700280,2.348729,95242.0,95241.0,0.02053444]
[1735473700700,1.845581,95242.0,95241.0,0.02053444]
[1735473700919,1.87613043,95242.0,95241.0,0.02053444]
[1735473702711,1.592418,95242.0,95241.0,0.02053444]
[1735473703119,3.02377,95242.0,95241.0,0.02053444]
[1735473703308,3.2096828,95245.0,95241.0,0.02053444]
[1735473703514,3.212503,95244.0,95241.0,0.02053444]
[1735473703940,0.01976593,95243.0,95241.0,0.02053444]
[1735473704154,3.437779,95242.0,95241.0,0.02053444]
[1735473704358,3.209795,95242.0,95241.0,0.02053444]
[1735473704597,3.191185,95242.0,95241.0,0.02053444]
[1735473704775,3.232784,95244.0,95241.0,0.02053444]
[1735473704980,3.219322,95244.0,95241.0,0.02053444]
[1735473705198,3.311622,95244.0,95241.0,0.02053444]
[1735473705821,0.01976656,95243.0,95241.0,0.02053444]
[1735473706050,3.511812,95242.0,95241.0,0.02053444]
[1735473706434,3.53157856,95242.0,95241.0,0.02053444]
[1735473706599,0.01976656,95242.0,95241.0,0.02053444]
[1735473706833,3.53157856,95242.0,95241.0,0.02053444]
[1735473707194,3.511812,95242.0,95241.0,0.02053444]
[1735473707621,3.53157856,95242.0,95241.0,0.02053444]
[1735473709315,3.54805656,95242.0,95241.0,0.02053444]
[1735473709524,3.54905656,95242.0,95241.0,0.02053444]
[1735473711474,3.54905656,95242.0,95241.0,0.01375878]
[1735473712019,3.52929,95242.0,95241.0,0.01375878]
[1735473712575,3.512812,95242.0,95241.0,0.01375878]
[1735473713429,3.590312,95242.0,95241.0,0.01375878]
[1735473715641,3.60678996,95242.0,95241.0,0.01375878]
[1735473715868,0.09497796,95242.0,95241.0,0.01375878]
[1735473716453,3.60678996,95242.0,95241.0,0.01375878]
[1735473716682,3.590312,95242.0,95241.0,0.01375878]
[1735473719562,3.60679,95242.0,95241.0,0.01375878]
[1735473720201,3.626557,95242.0,95241.0,0.01375878]
[1735473721325,3.549057,95242.0,95241.0,0.01375878]
[1735473723510,3.532579,95242.0,95241.0,0.01375878]
[1735473724155,3.532579,95242.0,95237.0,0.0505644]
[1735473724369,3.51286184,95241.0,95237.0,0.05061528]
[1735473724486,3.511812,95240.0,95237.0,0.05061528]
[1735473724716,3.511812,95240.0,95237.0,5.088e-05]
[1735473724921,3.511812,95241.0,95237.0,0.05061528]
[1735473725147,0.00104984,95240.0,95237.0,0.05061528]
[1735473725355,3.511812,95239.0,95237.0,0.05061528]
[1735473725555,3.79552109,95239.0,95237.0,0.05061528]
[1735473725754,3.511812,95238.0,95237.0,0.05061528]
[1735473726362,3.52829016,95238.0,95237.0,0.05061528]
[1735473726617,3.52829016,95238.0,95237.0,5.088e-05]
[1735473726789,3.52829016,95238.0,95237.0,0.05070068]
[1735473727686,3.511812,95238.0,95237.0,0.05070068]
[1735473730425,3.511812,95238.0,95237.0,0.18160068]
[1735473730636,1.02852716,95238.0,95237.0,0.18160068]
[1735473733757,1.012049,95238.0,95237.0,0.18160068]
[1735473733962,1.571085,95243.0,95237.0,0.18160068]
[1735473734164,1.568085,95243.0,95237.0,0.18160068]
[1735473734372,1.497023,95242.0,95238.0,0.0505644]
[1735473734587,1.294313,95241.0,95238.0,0.0505644]
[1735473734788,1.529493,95243.0,95238.0,0.0505644]
[1735473734992,1.532493,95243.0,95238.0,0.0505644]
[1735473735170,1.082927,95243.0,95241.0,0.0505644]
[1735473735321,2.475707,95243.0,95241.0,0.0505644]
[1735473735530,2.447878,95243.0,95241.0,0.0505644]
[1735473735753,2.539478,95242.0,95241.0,0.0505644]
[1735473735964,2.55924394,95242.0,95241.0,0.0505644]
[1735473736180,2.52255294,95242.0,95241.0,0.0505644]
[1735473736372,2.502787,95242.0,95241.0,0.0505644]
[1735473736706,2.51926424,95242.0,95241.0,0.0505644]
[1735473737465,2.52026424,95242.0,95241.0,0.0505644]
[1735473737864,2.51926424,95242.0,95241.0,0.0505644]
[1735473738062,0.01747724,95242.0,95241.0,0.0505644]
[1735473738260,0.01747724,95242.0,95241.0,0.15161422]
[1735473738527,2.51651924,95242.0,95241.0,0.1505644]
[1735473738714,2.42665924,95242.0,95241.0,0.1505644]
[1735473739017,2.27058824,95242.0,95241.0,0.1505644]
[1735473739473,2.26958824,95242.0,95241.0,0.1506498]
[1735473739695,2.26958824,95242.0,95241.0,0.1516498]
[1735473739901,2.26975904,95242.0,95241.0,0.1516498]
[1735473743023,2.26975904,95242.0,95241.0,0.0516498]
[1735473743622,2.2532818,95242.0,95241.0,0.0516498]
[1735473743981,2.2522818,95242.0,95241.0,0.0516498]
[1735473745013,2.2522818,95242.0,95241.0,0.0506498]
[1735473745636,2.2522818,95242.0,95241.0,0.0516498]
[1735473745959,2.2522818,95242.0,95241.0,0.0506498]
[1735473746303,2.2522818,95242.0,95241.0,0.0516498]
[1735473746502,2.26875928,95242.0,95241.0,0.0516498]
[1735473753835,2.2522818,95242.0,95241.0,0.0516498]
[1735473755126,0.0001708,95242.0,95241.0,0.0516498]
[1735473755279,2.3083178,95242.0,95241.0,0.05269965]
[1735473755484,2.5885178,95242.0,95241.0,0.0516498]
[1735473755693,2.2190328,95242.0,95241.0,0.0516498]
[1735473756594,2.0070121,95242.0,95241.0,0.0718134]
[1735473756798,2.186647,95243.0,95241.0,0.0718134]
[1735473757051,2.866673,95242.0,95241.0,0.0718134]
[1735473757261,2.866673,95242.0,95241.0,0.0516498]
[1735473757899,2.866673,95242.0,95241.0,0.0506498]
[1735473758227,2.88315048,95242.0,95241.0,0.0516498]
[1735473758633,2.88315048,95242.0,95241.0,0.0506498]
[1735473759065,2.88315048,95242.0,95241.0,0.0516498]
[1735473759447,2.83677348,95242.0,95241.0,0.0516498]
[1735473760653,2.80977448,95242.0,95241.0,0.0516498]
[1735473761056,2.69139948,95242.0,95241.0,0.0516498]
[1735473761670,2.64532648,95242.0,95241.0,0.0516498]
[1735473763324,2.43609848,95242.0,95241.0,0.0516498]
[1735473763777,2.4197918,95242.0,95241.0,0.05069011]
[1735473763984,2.4197918,95242.0,95241.0,0.05169011]
[1735473764488,2.4197918,95242.0,95241.0,0.05069011]
[1735473764936,2.4197918,95242.0,95241.0,0.05169011]
[1735473766547,2.43626928,95242.0,95241.0,0.05169011]
[1735473771023,3.31661128,95242.0,95241.0,0.05169011]
[1735473773575,3.3001338,95242.0,95241.0,0.05169011]
[1735473775337,3.31661128,95242.0,95241.0,0.05169011]
[1735473780771,3.60030017,95242.0,95241.0,0.05169011]
[1735473782324,3.52817617,95242.0,95241.0,0.05169011]
[1735473782939,3.19568717,95242.0,95241.0,0.05169011]
[1735473783541,3.17920969,95242.0,95241.0,0.05169011]
[1735473784118,2.99011469,95242.0,95241.0,0.05169011]
[1735473785702,2.7064258,95242.0,95241.0,0.05169011]
[1735473786498,2.72290328,95242.0,95241.0,0.05169011]
[1735473787095,2.7064258,95242.0,95241.0,0.05169011]
[1735473787347,2.7229033,95242.0,95241.0,0.05169011]
[1735473797100,2.7064258,95242.0,95241.0,0.05169011]
[1735473798088,2.72290326,95242.0,95241.0,0.05169011]
[1735473800901,2.72290326,95242.0,95241.0,0.04893053]
[1735473801103,0.01664826,95242.0,95241.0,0.04893053]
[1735473801636,3.31661126,95242.0,95241.0,0.04893053]
[1735473801844,3.107486,95242.0,95241.0,0.04893053]
[1735473802045,3.12396346,95242.0,95241.0,0.04893053]
[1735473807052,3.19896346,95242.0,95241.0,0.04893053]
[1735473807251,3.19896346,95242.0,95241.0,0.00112571]
[1735473808223,3.19896346,95242.0,95241.0,0.04893053]
[1735473808415,3.19896346,95242.0,95241.0,0.00112571]
[1735473810461,3.19913426,95242.0,95241.0,0.00112571]
[1735473811035,3.24613426,95242.0,95241.0,0.00112571]
[1735473812095,3.26590115,95242.0,95241.0,0.00112571]
[1735473813037,3.24613426,95242.0,95241.0,0.00112571]
[1735473813453,0.13864826,95242.0,95241.0,0.00112571]
[1735473813655,3.23070664,95242.0,95241.0,0.00112571]
[1735473813875,3.2296568,95242.0,95241.0,0.00112571]
[1735473814357,3.56506663,95242.0,95241.0,0.00112571]
[1735473814988,3.24613486,95242.0,95241.0,0.00112571]
[1735473825366,3.26590216,95242.0,95241.0,0.00112571]
[1735473826904,3.26590216,95242.0,95241.0,0.00012571]
[1735473827256,3.2524241,95242.0,95241.0,0.00012571]
[1735473827764,3.2504241,95242.0,95241.0,0.00012571]
[1735473827960,3.2524241,95242.0,95241.0,0.00012571]
[1735473828164,3.2514241,95242.0,95241.0,0.00012571]
[1735473828741,3.26690223,95242.0,95241.0,0.00012571]
[1735473830277,3.26790223,95242.0,95241.0,0.00012571]
[1735473830723,3.26890223,95242.0,95241.0,0.00012571]
[1735473834947,3.22190223,95242.0,95241.0,0.00012571]
[1735473836700,3.22179426,95242.0,95241.0,0.00012571]
[1735473837236,3.20531613,95242.0,95241.0,0.00012571]
[1735473838788,3.22179424,95242.0,95241.0,0.00012571]
[1735473846568,3.20202694,95242.0,95241.0,0.00012571]
[1735473846991,3.52095871,95242.0,95241.0,0.00012571]
[1735473848065,3.20202694,95242.0,95241.0,0.00012571]
[1735473848291,3.18554883,95242.0,95241.0,0.00012571]
[1735473849720,3.20202707,95242.0,95241.0,0.00012571]
[1735473852621,2.98136907,95242.0,95241.0,0.00012571]
[1735473852843,2.05965104,95242.0,95241.0,0.00012571]
[1735473854189,2.05665104,95242.0,95241.0,0.00012571]
[1735473854318,2.05965104,95242.0,95241.0,0.00012571]
[1735473854731,2.37595915,95242.0,95241.0,0.00012571]
[1735473854948,2.37695915,95242.0,95241.0,0.00012571]
[1735473855155,2.37795915,95242.0,95241.0,0.00012571]
[1735473855387,2.37695915,95242.0,95241.0,0.00012571]
[1735473856728,2.05765104,95242.0,95241.0,0.00012571]
[1735473856929,2.05965104,95242.0,95241.0,0.00012571]
[1735473857143,2.05765104,95242.0,95241.0,0.00012571]
[1735473857568,2.05865104,95242.0,95241.0,0.00012571]
[1735473858091,2.0421728,95242.0,95241.0,0.00012571]
[1735473860753,3.1096568,95242.0,95241.0,0.00012571]
[1735473861125,3.14590139,95242.0,95241.0,0.00012571]
[1735473863586,3.14490139,95242.0,95241.0,0.00012571]
[1735473864203,3.14390139,95242.0,95241.0,0.00012571]
[1735473864413,3.14490139,95242.0,95241.0,0.00012571]
[1735473869053,3.14390139,95242.0,95241.0,0.00012571]
[1735473869257,3.14490139,95242.0,95241.0,0.00012571]
[1735473870424,3.46419603,95242.0,95241.0,0.00012571]
[1735473874974,3.46419603,95242.0,95239.0,0.09194105]
[1735473875179,3.107486,95241.0,95239.0,0.09194105]
[1735473875731,0.01976657,95240.0,95239.0,0.09194105]
[1735473875924,3.12725257,95240.0,95239.0,0.09194105]
[1735473879157,3.12725257,95240.0,95239.0,0.04414105]
[1735473881999,3.12725257,95240.0,95239.0,0.04422645]
[1735473882839,3.13025257,95240.0,95239.0,0.04422645]
[1735473883152,3.12825257,95240.0,95239.0,0.04422645]
[1735473883392,3.12725257,95240.0,95239.0,0.04422645]
[1735473885572,3.12825257,95240.0,95239.0,0.04422645]
[1735473885969,3.12725257,95240.0,95239.0,0.04422645]
[1735473886195,3.13025257,95240.0,95239.0,0.04422645]
[1735473886397,3.12725257,95240.0,95239.0,0.04422645]
[1735473887021,3.12725257,95240.0,95239.0,0.14422645]
[1735473887895,3.12725257,95240.0,95239.0,0.27152645]
[1735473888024,3.107486,95240.0,95239.0,0.27152645]
[1735473889811,3.108486,95240.0,95239.0,0.27152645]
[1735473890041,3.108486,95240.0,95239.0,0.27252645]
[1735473891115,2.275254,95240.0,95239.0,0.27252645]
[1735473891330,2.29173063,95240.0,95239.0,0.27252645]
[1735473891865,1.90414463,95240.0,95239.0,0.2999193]
[1735473892089,1.31969663,95240.0,95239.0,0.2999193]
[1735473892443,0.09636863,95240.0,95239.0,0.4999193]
[1735473892649,0.48981,95241.0,95240.0,0.46994105]
[1735473892848,0.0001708,95242.0,95241.0,0.46994105]
[1735473893252,0.0001708,95242.0,95241.0,0.46894105]
[1735473893450,0.5429298,95242.0,95241.0,0.46794105]
[1735473893683,0.5573528,95242.0,95241.0,0.46794105]
[1735473893881,0.3968338,95242.0,95241.0,0.46794105]
[1735473894093,0.3978338,95242.0,95241.0,0.52269811]
[1735473894702,0.0001708,95244.0,95243.0,0.34214105]
[1735473894899,0.4541578,95244.0,95243.0,0.41914105]
[1735473895386,0.4541578,95244.0,95243.0,0.41814105]
[1735473896059,0.47063179,95244.0,95243.0,0.41714105]
[1735473896271,0.47063179,95244.0,95243.0,0.46917803]
[1735473896885,0.47163179,95244.0,95243.0,0.47817803]
[1735473899295,0.30164879,95244.0,95243.0,0.48517803]
[1735473903617,0.2851748,95244.0,95243.0,0.48517803]
[1735473905802,0.0021708,95244.0,95243.0,0.48517803]
[1735473907401,0.2098008,95244.0,95243.0,0.48517803]
[1735473908029,0.0021708,95244.0,95243.0,0.74616435]
[1735473908227,0.0001708,95263.0,95247.0,0.56364105]
[1735473908469,0.0001708,95263.0,95247.0,0.74119381]
[1735473908662,0.0001708,95263.0,95260.0,0.34314105]
[1735473909229,0.0001708,95263.0,95260.0,0.49312737]
[1735473909828,0.01664011,95261.0,95260.0,0.49312737]
[1735473910233,0.01664011,95261.0,95260.0,0.49212737]
[1735473910442,0.01664011,95261.0,95260.0,0.54134011]
[1735473910928,0.01764011,95261.0,95260.0,0.55034011]
[1735473911421,0.01664011,95261.0,95260.0,0.54134011]
[1735473912944,0.01764011,95261.0,95260.0,0.55034011]
[1735473913162,0.01764011,95261.0,95260.0,0.54934011]
[1735473913657,0.0011708,95261.0,95260.0,0.54934011]
[1735473914090,0.0021708,95261.0,95260.0,0.55834011]
[1735473914295,0.0021708,95261.0,95260.0,0.66934011]
[1735473916957,0.01863931,95261.0,95260.0,0.66934011]
[1735473920598,0.01863931,95261.0,95260.0,0.66942551]
[1735473923791,0.0021708,95261.0,95260.0,0.66942551]
[1735473925923,0.0001708,95263.0,95261.0,1.07322129]
[1735473926094,0.0822,95310.0,95278.0,0.55694105]
[1735473926298,0.0822,95310.0,95278.0,0.66092737]
[1735473926921,0.00122064,95340.0,95278.0,0.66092737]
[1735473926922,0.08526834,95348.0,95332.0,0.13814105]
[1735473927132,2.84698307,95347.0,95332.0,0.13814105]
[1735473927332,2.947034,95346.0,95332.0,0.13814105]
[1735473927542,0.01646354,95344.0,95338.0,0.04114105]
[1735473927703,2.97064207,95343.0,95338.0,0.04014105]
[1735473927903,2.947034,95342.0,95338.0,0.03914105]
[1735473928139,0.02360807,95341.0,95338.0,0.03914105]
[1735473928332,2.947034,95340.0,95338.0,0.03914105]
[1735473928554,0.02360807,95339.0,95338.0,0.05413656]
[1735473928756,2.97064207,95339.0,95338.0,0.01499551]
[1735473928958,2.97064207,95339.0,95338.0,0.05413656]
[1735473929162,2.97064207,95339.0,95338.0,0.03914105]
[1735473930020,3.09934207,95339.0,95338.0,0.03914105]
[1735473930463,3.09934207,95339.0,95338.0,0.04114105]
[1735473931306,3.13236956,95339.0,95338.0,0.04114105]
[1735473931506,3.1035684,95339.0,95338.0,0.04114105]
[1735473931998,3.09934207,95339.0,95338.0,0.04114105]
[1735473932672,3.09934207,95339.0,95338.0,0.03914105]
[1735473933053,3.09942747,95339.0,95338.0,0.03914105]
[1735473937350,3.09492747,95339.0,95338.0,0.03914105]
[1735473938649,3.11139091,95339.0,95338.0,0.03914105]
[1735473940787,3.11544594,95339.0,95338.0,0.03914105]
[1735473943848,3.0989825,95339.0,95338.0,0.03914105]
[1735473944051,2.7362925,95339.0,95338.0,0.03914105]
[1735473944632,2.7362925,95339.0,95338.0,0.03931165]
[1735473944979,2.5334735,95339.0,95338.0,0.03931165]
[1735473945149,2.5334735,95339.0,95338.0,0.05294282]
[1735473946319,2.5334735,95339.0,95338.0,0.14994282]
[1735473946521,2.4092735,95339.0,95338.0,0.14994282]
[1735473946726,1.67454243,95339.0,95338.0,0.15194282]
[1735473946965,1.37327943,95339.0,95338.0,0.14994282]
[1735473947168,1.37855564,95339.0,95338.0,0.15094282]
[1735473948391,1.37855564,95339.0,95338.0,0.14031165]
[1735473948996,1.37855564,95339.0,95338.0,0.13631165]
[1735473949417,1.37855564,95339.0,95338.0,0.14431165]
[1735473949620,1.37855564,95339.0,95338.0,0.13631165]
[1735473949823,1.37855564,95339.0,95338.0,0.14531165]
[1735473950248,1.37855564,95339.0,95338.0,0.15984281]
[1735473950545,1.37855564,95339.0,95338.0,0.14531165]
[1735473950988,1.37855564,95339.0,95338.0,0.15031165]
[1735473951413,1.37855564,95339.0,95338.0,0.14531165]
[1735473952301,1.37855564,95339.0,95338.0,0.15031165]
[1735473953593,1.36209343,95339.0,95338.0,0.15031165]
[1735473956395,0.00414043,95339.0,95338.0,0.15031165]
[1735473956762,8.54e-05,95339.0,95338.0,0.15031165]
[1735473956915,0.01654609,95339.0,95338.0,0.1111706]
[1735473957242,0.02178232,95339.0,95338.0,0.1111706]
[1735473957603,2.96881632,95339.0,95338.0,0.1111706]
[1735473958019,2.96881632,95339.0,95338.0,0.14531165]
[1735473958241,2.96881632,95339.0,95338.0,0.14631165]
[1735473959938,2.96881632,95339.0,95338.0,0.14531165]
[1735473960356,2.96881632,95339.0,95338.0,0.14631165]
[1735473961420,2.96881632,95339.0,95338.0,0.13731165]
[1735473961622,2.96881632,95339.0,95338.0,0.0981706]
[1735473961826,2.96881632,95339.0,95338.0,0.1021706]
[1735473962231,2.96881632,95339.0,95338.0,0.0981706]
[1735473962438,2.96881632,95339.0,95338.0,0.1021706]
[1735473962899,2.96881632,95339.0,95338.0,0.14131165]
[1735473963508,2.92694032,95339.0,95338.0,0.14131165]
[1735473963710,2.91047963,95339.0,95338.0,0.14131165]
[1735473964308,2.57262963,95339.0,95338.0,0.14131165]
[1735473964453,2.52012263,95339.0,95338.0,0.14131165]
[1735473964907,2.08471563,95339.0,95338.0,0.14131165]
[1735473965086,2.03654863,95339.0,95338.0,0.14131165]
[1735473966971,2.95235563,95339.0,95338.0,0.14131165]
[1735473968368,2.87721663,95339.0,95338.0,0.13731165]
[1735473968601,2.87721663,95339.0,95338.0,0.14131165]
[1735473968733,2.89367766,95339.0,95338.0,0.14131165]
[1735473969165,2.97567766,95339.0,95338.0,0.04431165]
[1735473969357,3.03674957,95339.0,95338.0,0.04431165]
[1735473969537,3.05050069,95339.0,95338.0,0.04431165]
[1735473969907,3.05050069,95339.0,95338.0,0.03931165]
[1735473970090,3.05050069,95339.0,95338.0,0.0021706]
[1735473970344,3.06360631,95339.0,95338.0,0.0021706]
[1735473970546,3.10033007,95339.0,95338.0,0.0021706]
[1735473970981,3.10033007,95339.0,95338.0,0.0001706]
[1735473971373,3.10033007,95339.0,95338.0,0.0021706]
[1735473971553,3.10033007,95339.0,95338.0,0.0001706]
[1735473972294,3.10033007,95339.0,95338.0,0.0021706]
[1735473973104,3.10517317,95339.0,95338.0,0.0021706]
[1735473975473,3.10517317,95339.0,95338.0,0.04131165]
[1735473977022,3.09590069,95339.0,95338.0,0.04131165]
[1735473977379,3.07943966,95339.0,95338.0,0.04131165]
[1735473978276,3.07943966,95339.0,95338.0,0.0021706]
[1735473979030,3.07943966,95339.0,95338.0,0.04131165]
[1735473979388,3.07943966,95339.0,95338.0,0.0021706]
[1735473980023,3.04796997,95339.0,95338.0,0.0021706]
[1735473980360,3.06443307,95339.0,95338.0,0.04131165]
[1735473980554,3.06443307,95339.0,95338.0,0.0021706]
[1735473980823,3.06443307,95339.0,95338.0,0.04131165]
[1735473981854,3.38372771,95339.0,95338.0,0.04131165]
[1735473982566,3.36726461,95339.0,95338.0,0.04131165]
[1735473982741,3.04796997,95339.0,95338.0,0.04131165]
[1735473984824,3.04796997,95339.0,95338.0,0.0021706]
[1735473985451,3.04796997,95339.0,95338.0,0.04131165]
[1735473986035,3.06443285,95339.0,95338.0,0.04131165]
[1735473986817,3.04468758,95339.0,95338.0,0.04131165]
[1735473987151,3.0282247,95339.0,95338.0,0.04131165]
[1735473988647,3.0282247,95339.0,95338.0,0.0021706]
[1735473989042,3.0282247,95339.0,95338.0,0.04131165]
[1735473989870,3.0282247,95339.0,95338.0,0.0021706]
[1735473990075,3.04468756,95339.0,95338.0,0.0021706]
[1735473990686,3.04468756,95339.0,95338.0,0.0001706]
[1735473990894,3.04468756,95339.0,95338.0,0.03931165]
[1735473991632,3.04568756,95339.0,95338.0,0.03931165]
[1735473992064,3.04568756,95339.0,95338.0,0.0001706]
[1735473992222,3.04468756,95339.0,95338.0,0.0001706]
[1735473992403,3.04468756,95339.0,95338.0,0.03931165]
[1735473992602,3.04468756,95339.0,95338.0,0.0001706]
[1735473993722,3.0282247,95339.0,95338.0,0.0001706]
[1735473993926,3.0282247,95339.0,95338.0,0.03931165]
[1735473994298,3.0292247,95339.0,95338.0,0.03931165]
[1735473996951,3.0456876,95339.0,95338.0,0.03931165]
[1735473998158,3.36498224,95339.0,95338.0,0.03931165]
[1735474001139,3.0456876,95339.0,95338.0,0.03931165]
[1735474001275,3.06543504,95339.0,95338.0,0.03931165]
[1735474003675,3.04897214,95339.0,95338.0,0.03931165]
[1735474005872,3.04797214,95339.0,95338.0,0.03931165]
[1735474006276,3.05097214,95339.0,95338.0,0.0001706]
[1735474006546,3.05097214,95339.0,95338.0,0.03931165]
[1735474006750,3.04797214,95339.0,95338.0,0.03931165]
[1735474007103,3.06543483,95339.0,95338.0,0.03931165]
[1735474007304,3.06643483,95339.0,95338.0,0.03931165]
[1735474007726,3.06543483,95339.0,95338.0,0.03931165]
[1735474007952,3.06643483,95339.0,95338.0,0.03931165]
[1735474010795,3.06643483,95339.0,95338.0,0.0001706]
[1735474011961,3.09790452,95339.0,95338.0,0.0001706]
[1735474013730,3.08395245,95339.0,95338.0,0.0001706]
[1735474013926,3.02636407,95339.0,95331.0,0.03242984]
[1735474014130,3.01737424,95338.0,95331.0,0.03242984]
[1735474014453,2.95224,95337.0,95331.0,0.03242984]
[1735474014673,3.00211176,95336.0,95331.0,0.03242984]
[1735474014874,3.022234,95335.0,95331.0,0.03242984]
[1735474015079,2.97850369,95334.0,95331.0,0.03242984]
[1735474015280,2.947034,95333.0,95331.0,0.03242984]
[1735474015484,0.048,95331.0,95307.0,0.097]
[1735474015684,3.05370369,95330.0,95306.0,0.097]
[1735474015845,2.947034,95329.0,95306.0,0.097]
[1735474016068,0.03146969,95328.0,95306.0,0.097]
[1735474016417,2.95106905,95327.0,95326.0,0.03242984]
[1735474016797,2.97081649,95327.0,95326.0,0.03242984]
[1735474017166,2.98728068,95327.0,95326.0,0.03242984]
[1735474017791,3.01875037,95327.0,95326.0,0.03242984]
[1735474017972,3.02181224,95327.0,95326.0,0.03242984]
[1735474018753,2.90636355,95327.0,95326.0,0.03242984]
[1735474019511,2.90736355,95327.0,95326.0,0.03242984]
[1735474019716,2.53920255,95327.0,95326.0,0.03242984]
[1735474019918,2.48219955,95327.0,95326.0,0.03242984]
[1735474021811,2.46326655,95327.0,95326.0,0.03242984]
[1735474023804,2.42941636,95327.0,95326.0,0.03242984]
[1735474025237,2.36731936,95327.0,95326.0,0.03242984]
[1735474026196,2.23360236,95327.0,95326.0,0.03242984]
[1735474027099,2.21385492,95327.0,95326.0,0.03242984]
[1735474027278,2.2303192,95327.0,95326.0,0.03242984]
[1735474027478,2.26178889,95327.0,95326.0,0.03242984]
[1735474028075,2.26178889,95327.0,95326.0,0.03260044]
[1735474033593,2.24532461,95327.0,95326.0,0.03260044]
[1735474035088,2.24532461,95327.0,95326.0,0.11480044]
[1735474035286,1.94296092,95327.0,95326.0,0.11480044]
[1735474035469,1.94372276,95327.0,95326.0,0.11480044]
[1735474036079,1.94272276,95327.0,95326.0,0.11480044]
[1735474036331,1.94072276,95327.0,95326.0,0.11480044]
[1735474036521,1.94372276,95327.0,95326.0,0.11480044]
[1735474036779,1.94172276,95327.0,95326.0,0.11480044]
[1735474036997,1.9571867,95327.0,95326.0,0.11480044]
[1735474037877,1.9571867,95327.0,95326.0,0.11580044]
[1735474038203,1.9571867,95327.0,95326.0,0.11880044]
[1735474038485,1.9571867,95327.0,95326.0,0.11580044]
[1735474038726,1.9571867,95327.0,95326.0,0.11880044]
[1735474039410,1.9571867,95327.0,95326.0,0.11780044]
[1735474039790,1.9571867,95327.0,95326.0,0.11880044]
[1735474041158,1.9571867,95327.0,95326.0,0.11780044]
[1735474042942,1.9571867,95327.0,95326.0,0.03560044]
[1735474043090,1.94072276,95327.0,95326.0,0.03560044]
[1735474043713,1.94072276,95327.0,95326.0,0.03260044]
[1735474044490,1.94072276,95327.0,95326.0,0.03460044]
[1735474044690,1.94072276,95327.0,95326.0,0.03260044]
[1735474044948,1.94072276,95327.0,95326.0,0.03460044]
[1735474047993,1.95718661,95327.0,95326.0,0.03460044]
[1735474049579,1.68959379,95327.0,95326.0,0.03460044]
[1735474049964,1.68959379,95327.0,95326.0,0.04639017]
[1735474050494,1.68959379,95327.0,95326.0,0.03460044]
[1735474053595,1.67312994,95327.0,95326.0,0.03460044]
[1735474056779,1.67312994,95327.0,95326.0,0.03380044]
[1735474057082,1.68959367,95327.0,95326.0,0.03380044]
[1735474063701,1.67312994,95327.0,95326.0,0.03380044]
[1735474064906,1.67312994,95327.0,95326.0,0.03197124]
[1735474065255,1.67421534,95327.0,95326.0,0.03197124]
[1735474065459,1.67521534,95327.0,95326.0,0.03197124]
[1735474065649,1.67421534,95327.0,95326.0,0.03197124]
[1735474066098,1.67321534,95327.0,95326.0,0.03197124]
[1735474066842,1.68967907,95327.0,95326.0,0.03197124]
[1735474068436,1.68967907,95327.0,95326.0,0.03297124]
[1735474073736,1.67321534,95327.0,95326.0,0.03297124]
[1735474076836,1.68967907,95327.0,95326.0,0.03297124]
[1735474080835,1.68967907,95327.0,95326.0,0.03197124]
[1735474081006,1.68967907,95327.0,95326.0,0.03297124]
[1735474081205,2.04016026,95327.0,95326.0,0.03297124]
[1735474081407,2.04016026,95327.0,95326.0,0.03197124]
[1735474081611,2.04016026,95327.0,95326.0,0.03297124]
[1735474082414,2.04016026,95327.0,95326.0,0.03197124]
[1735474082848,2.04016026,95327.0,95326.0,0.03297124]
[1735474083051,1.70468503,95327.0,95326.0,0.03297124]
[1735474083211,0.0372109,95327.0,95326.0,0.03297124]
[1735474083413,0.03155509,95327.0,95326.0,0.03297124]
[1735474083748,0.03648464,95327.0,95326.0,0.03297124]
[1735474083946,2.71612964,95327.0,95326.0,0.03297124]
[1735474088397,2.73259333,95327.0,95326.0,0.03297124]
[1735474093670,2.71612964,95327.0,95326.0,0.03297124]
[1735474094096,2.73113768,95327.0,95326.0,0.03297124]
[1735474094987,2.73113768,95327.0,95326.0,0.10827124]
[1735474095235,2.65050764,95327.0,95326.0,0.03297124]
[1735474097130,2.66697152,95327.0,95326.0,0.03297124]
[1735474098120,2.666127,95327.0,95326.0,0.03297124]
[1735474100159,2.6662124,95327.0,95326.0,0.03297124]
[1735474103069,2.98585223,95327.0,95326.0,0.03297124]
[1735474103604,2.96938835,95327.0,95326.0,0.03297124]
[1735474106652,2.98585209,95327.0,95326.0,0.03297124]
[1735474109134,2.66621226,95327.0,95326.0,0.03297124]
[1735474110176,2.68982033,95327.0,95326.0,0.03297124]
[1735474110735,0.07579733,95327.0,95326.0,0.03297124]
[1735474110940,2.75544233,95327.0,95326.0,0.03297124]
[1735474111970,2.66486233,95327.0,95326.0,0.03297124]
[1735474112174,2.39575633,95327.0,95326.0,0.03297124]
[1735474113234,2.37962833,95327.0,95326.0,0.03297124]
[1735474113583,2.36316459,95327.0,95326.0,0.03297124]
[1735474114372,2.29725559,95327.0,95326.0,0.03297124]
[1735474117172,2.31371909,95327.0,95326.0,0.03297124]
[1735474123622,2.29725559,95327.0,95326.0,0.03297124]
[1735474125190,2.29825559,95327.0,95326.0,0.03197124]
[1735474125358,2.30025559,95327.0,95326.0,0.03197124]
[1735474125777,2.29825559,95327.0,95326.0,0.03197124]
[1735474126073,2.29825559,95327.0,95326.0,0.03397124]
[1735474126305,2.29725559,95327.0,95326.0,0.03397124]
[1735474126953,2.31371911,95327.0,95326.0,0.03397124]
[1735474130598,2.75544211,95327.0,95326.0,0.03397124]
[1735474133523,2.73897859,95327.0,95326.0,0.03397124]
[1735474134562,2.10062802,95327.0,95326.0,0.21899119]
[1735474134689,2.03077395,95327.0,95326.0,0.21899119]
[1735474134893,1.86570795,95327.0,95326.0,0.21899119]
[1735474135434,1.86570795,95327.0,95326.0,0.21699119]
[1735474135591,1.86570795,95327.0,95326.0,0.21899119]
[1735474137021,1.88217042,95327.0,95326.0,0.21899119]
[1735474137977,1.88217042,95327.0,95326.0,0.22599119]